[Event "CZE-ch Amateurs 2022"]
[Site "Luhacovice"]
[Date "2022.03.16"]
[Round "6.13"]
[White "Jares, Michal"]
[Black "Benes, Miroslav"]
[Result "1/2-1/2"]
[ECO "B52"]
[WhiteElo "2160"]
[BlackElo "1929"]
[Annotator "ChessBase"]
[PlyCount "70"]
[EventDate "2022.03.12"]
[EventType "swiss"]
[EventCountry "CZE"]
[SourceTitle "playchess.com"]
[Source "ChessBase"]
[SourceQuality "1"]
[TimeControl "5400+30"]

1. e4 {[%emt 0:00:12]} c5 {[%emt 0:08:04]} 2. Nf3 {[%emt 0:00:12]} d6 {[%emt 0:00:49]} 3. Bb5+ {[%emt 0:01:52]} Bd7 {[%emt 0:00:32]} 4. Bxd7+ {[%emt 0:00:09]} Qxd7 {[%emt 0:00:15]} 5. O-O {[%emt 0:00:12]} Nc6 {[%emt 0:01:05]} 6. c3 {[%emt 0:00:55]} Nf6 {[%emt 0:00:33]} 7. Re1 {[%emt 0:00:47]} e6 {[%emt 0:00:19]} 8. d3 {[%emt 0:03:26]} Be7 {[%emt 0:00:42]} 9. a4 {[%emt 0:01:13]} O-O {[%emt 0:05:02]} 10. Nbd2 {[%emt 0:03:29]} b6 {[%emt 0:10:22]} 11. Qe2 {[%emt 0:02:02]} a6 {[%emt 0:07:37]} 12. Nc4 {[%emt 0:12:34]} Rab8 {[%emt 0:06:45]} 13. Bf4 {[%emt 0:05:48]} Nh5 {[%emt 0:01:52]} 14. Bg3 {[%emt 0:06:50]} Nxg3 {[%emt 0:00:30]} 15. hxg3 {[%emt 0:00:04]} b5 {[%emt 0:00:40]} 16. axb5 {[%emt 0:05:00]} axb5 {[%emt 0:00:01]} 17. Ne3 {[%emt 0:00:49]} b4 {[%emt 0:08:18]} 18. d4 {[%emt 0:04:35]} bxc3 {[%emt 0:00:54]} 19. bxc3 {[%emt 0:00:10]} cxd4 {[%emt 0:00:16]} 20. cxd4 {[%emt 0:00:30]} Bf6 {[%emt 0:00:51]} 21. Rad1 {[%emt 0:03:28]} Qa7 {[%emt 0:04:02]} 22. Ra1 {[%emt 0:07:43]} Qb6 {[%emt 0:05:28]} 23. e5 {[%emt 0:06:10]} dxe5 {[%emt 0:00:41]} 24. dxe5 {[%emt 0:00:24]} Be7 {[%emt 0:06:16]} 25. Qc4 {[%emt 0:03:20]} Rfc8 {[%emt 0:04:01]} 26. Rec1 {[%emt 0:03:02]} Na7 {[%emt 0:01:44]} 27. Qe4 {[%emt 0:02:17]} Rxc1+ {[%emt 0:01:59]} 28. Rxc1 {[%emt 0:00:02]} h6 {[%emt 0:00:46]} 29. g4 {[%emt 0:03:33]} Rc8 {[%emt 0:09:29]} 30. Rb1 {[%emt 0:01:38]} Qc6 {[%emt 0:02:03]} 31. Qf4 {[%emt 0:01:15]} Nb5 {[%emt 0:00:46]} 32. g5 {[%emt 0:02:21]} Nc3 {[%emt 0:00:40]} 33. Re1 {[%emt 0:00:26]} hxg5 {[%emt 0:00:37]} 34. Nxg5 {[%emt 0:00:47]} Bxg5 {[%emt 0:00:34]} 35. Qxg5 {[%emt 0:00:02]} Qe4 {[%emt 0:01:15]} 1/2-1/2

[Event "CZE-ch Amateurs 2022"]
[Site "Luhacovice"]
[Date "2022.03.16"]
[Round "6.14"]
[White "Vanek, Ladislav"]
[Black "Vrzal, Filip"]
[Result "1-0"]
[ECO "D00"]
[WhiteElo "2221"]
[BlackElo "1877"]
[Annotator "RC"]
[PlyCount "84"]
[EventDate "2022.03.12"]
[EventType "swiss"]
[EventCountry "CZE"]
[SourceTitle "playchess.com"]
[Source "ChessBase"]
[SourceQuality "1"]
[TimeControl "5400+30"]

1. d4 {[%emt 0:00:11]} Nf6 {[%emt 0:00:05]} 2. Bf4 {[%emt 0:00:24]} d5 {[%emt 0:00:23]} 3. e3 {[%emt 0:00:16]} c5 {[%emt 0:00:15]} 4. c3 {[%emt 0:00:16]} Qb6 {[%emt 0:00:12]} 5. Qb3 {[%emt 0:02:16]} c4 {[%emt 0:00:10]} 6. Qc2 {[%emt 0:01:14]} g6 {[%emt 0:00:14]} 7. Nd2 {[%emt 0:02:16]} Bf5 {[%emt 0:01:24]} 8. Qc1 {[%emt 0:00:06]} Nc6 {[%emt 0:05:16]} 9. Ngf3 {[%emt 0:00:07]} Bg7 {[%emt 0:00:23]} 10. Be2 {[%emt 0:00:33]} O-O {[%emt 0:05:06]} 11. O-O {[%emt 0:00:07]} Nh5 {[%emt 0:01:37]} 12. Re1 {[%emt 0:04:55]} Nxf4 {[%emt 0:02:17]} 13. exf4 {[%emt 0:00:05]} Bg4 {[%emt 0:06:03]} 14. Nf1 {[%emt 0:00:32]} Qc7 {[%emt 0:01:31]} 15. Ne3 {[%emt 0:00:21]} Bxf3 {[%emt 0:00:20]} 16. Bxf3 {[%emt 0:00:06]} e6 {[%emt 0:00:08]} 17. g3 {[%emt 0:02:33]} b5 {[%emt 0:01:58]} 18. h4 {[%emt 0:00:27]} b4 {[%emt 0:06:05]} 19. Kg2 {[%emt 0:00:20]} Rab8 {[%emt 0:02:55]} 20. h5 {[%emt 0:00:16]} Rb6 {[%emt 0:01:46]} 21. Rh1 {[%emt 0:00:28]} bxc3 {[%emt 0:01:16]} 22. bxc3 {[%emt 0:00:08]} Rfb8 {[%emt 0:01:49]} 23. Rh4 {[%emt 0:12:40]} Nxd4 {[%emt 0:12:31]} 24. cxd4 {[%emt 0:00:18]} Bxd4 {[%emt 0:00:07]} 25. hxg6 {[%emt 0:00:07]} fxg6 {[%emt 0:00:13]} 26. f5 {[%emt 0:00:22]} Bxa1 {[%emt 0:01:16]} 27. Qxa1 {[%emt 0:04:29]} c3 {[%emt 0:00:32]} 28. Qd1 {[%emt 0:00:25]} gxf5 {[%emt 0:06:27]} 29. Qd3 {[%emt 0:07:32]} Rb4 {[%emt 0:13:48]} 30. Rh5 {[%emt 0:23:51]} Qg7 {[%emt 0:05:31]} 31. Nc2 {[%emt 0:03:29]} Rb2 {[%emt 0:05:30]} 32. Qe3 {[%emt 0:00:22]} Kh8 {[%emt 0:04:54]} 33. Nd4 {[%emt 0:01:59]} c2 {[%emt 0:07:11]} 34. Nxe6 {[%emt 0:02:11]} d4 {[%emt 0:04:08]} 35. Qf4 {[%emt 0:02:50]} Qf6 {[%emt 0:01:20]} 36. Rh6 {[%emt 0:00:17]} Qf7 {[%emt 0:02:13]} 37. Ng5 {[%emt 0:15:37]} Qg7 {[%emt 0:00:31]} 38. Rxh7+ {[%emt 0:00:17]} Qxh7 {[%emt 0:00:16]} 39. Nxh7 {[%emt 0:00:05]} Kxh7 {[%emt 0:01:11]} 40. Qxf5+ {[%emt 0:00:18]} Kg7 {[%emt 0:00:36]} 41. Qe5+ {[%emt 0:02:33]} Kf8 {[%emt 0:00:19]} 42. Qf6+ {[%emt 0:00:11]} Ke8 {[%emt 0:00:19]} 1-0

[Event "CZE-ch Amateurs 2022"]
[Site "Luhacovice"]
[Date "2022.03.16"]
[Round "6.15"]
[White "Novotny, Jaroslav"]
[Black "Fishchuk, Vladyslav"]
[Result "1-0"]
[ECO "A34"]
[WhiteElo "2190"]
[BlackElo "1657"]
[Annotator "ChessBase"]
[PlyCount "76"]
[EventDate "2022.03.12"]
[EventType "swiss"]
[EventCountry "CZE"]
[SourceTitle "playchess.com"]
[Source "ChessBase"]
[SourceQuality "1"]
[TimeControl "5400+30"]

1. Nf3 {[%emt 0:00:12]} Nf6 {[%emt 0:00:06]} 2. c4 {[%emt 0:00:12]} c5 {[%emt 0:00:25]} 3. Nc3 {[%emt 0:00:18]} Nc6 {[%emt 0:00:07]} 4. g3 {[%emt 0:00:32]} d5 {[%emt 0:00:06]} 5. d4 {[%emt 0:01:39]} cxd4 {[%emt 0:00:27]} 6. Nxd4 {[%emt 0:01:39]} e5 {[%emt 0:00:08]} 7. Nxc6 {[%emt 0:01:07]} bxc6 {[%emt 0:00:11]} 8. Bg2 {[%emt 0:00:36]} Rb8 {[%emt 0:02:44]} 9. O-O {[%emt 0:02:40]} d4 {[%emt 0:02:15]} 10. Bxc6+ {[%emt 0:04:28]} Bd7 {[%emt 0:00:09]} 11. Bxd7+ {[%emt 0:00:13]} Qxd7 {[%emt 0:00:15]} 12. Na4 {[%emt 0:00:45]} Qh3 {[%emt 0:03:34]} 13. f3 {[%emt 0:01:26]} Be7 {[%emt 0:00:43]} 14. e4 {[%emt 0:03:11]} h5 {[%emt 0:02:06]} 15. Qe2 {[%emt 0:01:14]} Qd7 {[%emt 0:02:15]} 16. b3 {[%emt 0:00:42]} h4 {[%emt 0:00:57]} 17. g4 {[%emt 0:02:03]} d3 {[%emt 0:07:14]} 18. Qf2 {[%emt 0:01:55]} Nh7 {[%emt 0:02:25]} 19. Rd1 {[%emt 0:05:57]} Rd8 {[%emt 0:01:08]} 20. Be3 {[%emt 0:03:33]} Ng5 {[%emt 0:01:58]} 21. Bxg5 {[%emt 0:02:40]} Bxg5 {[%emt 0:00:11]} 22. Nc5 {[%emt 0:00:20]} Qd6 {[%emt 0:00:55]} 23. Rxd3 {[%emt 0:01:30]} Qxd3 {[%emt 0:00:10]} 24. Nxd3 {[%emt 0:00:07]} Rxd3 {[%emt 0:00:03]} 25. Re1 {[%emt 0:05:14]} O-O {[%emt 0:00:31]} 26. Kg2 {[%emt 0:16:39]} Rfd8 {[%emt 0:00:42]} 27. Re2 {[%emt 0:01:12]} Rd2 {[%emt 0:01:56]} 28. Kh3 {[%emt 0:02:11]} Rxe2 {[%emt 0:00:21]} 29. Qxe2 {[%emt 0:00:01]} Rd2 {[%emt 0:00:08]} 30. Qf1 {[%emt 0:02:12]} Bf4 {[%emt 0:06:07]} 31. g5 {[%emt 0:00:31]} Rxh2+ {[%emt 0:00:09]} 32. Kg4 {[%emt 0:00:10]} h3 {[%emt 0:01:20]} 33. c5 {[%emt 0:01:25]} Rg2+ {[%emt 0:00:26]} 34. Kxh3 {[%emt 0:00:41]} Rg3+ {[%emt 0:00:23]} 35. Kh4 {[%emt 0:01:59]} Rxg5 {[%emt 0:01:44]} 36. c6 {[%emt 0:03:05]} Rg6 {[%emt 0:00:41]} 37. c7 {[%emt 0:00:33]} Rh6+ {[%emt 0:00:10]} 38. Kg4 {[%emt 0:00:16]} Rh2 {[%emt 0:00:00]} 1-0

[Event "CZE-ch Amateurs 2022"]
[Site "Luhacovice"]
[Date "2022.03.16"]
[Round "6.16"]
[White "Mach, Petr"]
[Black "Bures, Vit"]
[Result "0-1"]
[ECO "D11"]
[WhiteElo "2023"]
[BlackElo "2121"]
[Annotator "NA"]
[PlyCount "48"]
[EventDate "2022.03.12"]
[EventType "swiss"]
[EventCountry "CZE"]
[SourceTitle "playchess.com"]
[Source "ChessBase"]
[SourceQuality "1"]
[TimeControl "5400+30"]

{[%evp 19,48,-2,0,-8,0,32767,32767,32767,32767,-16,31,0,0,32767,0,-5,0,-141,-134,-161,-145,-166,32767,32767,32767,-158,32767,32767,-110,-155,-119]} 1. Nf3 {[%emt 0:00:11]} d5 {[%emt 0:00:06]} 2. g3 {[%emt 0:00:03]} Nf6 {[%emt 0:00:31]} 3. Bg2 {[%emt 0:00:36]} c6 {[%emt 0:00:57]} 4. O-O {[%emt 0:00:07]} Bg4 {[%emt 0:00:03]} 5. c4 {[%emt 0:00:35]} e6 {[%emt 0:00:20]} 6. Qb3 {[%emt 0:01:15]} Qb6 {[%emt 0:00:15]} 7. Nc3 {[%emt 0:00:34]} Nbd7 {[%emt 0:00:24]} 8. d4 {[%emt 0:00:22]} Be7 {[%emt 0:02:07]} 9. Bf4 {[%emt 0:04:25] has lost popularity (9.c5).} h6 {[%emt 0:04:23]} 10. Rfe1 {[%emt 0:04:20]} O-O {[%emt 0:04:33] [#]} 11. e4 $146 {[%emt 0:06:01]} ({Predecessor:} 11. Qxb6 axb6 12. Nd2 g5 13. Be3 Bf5 14. f3 Kg7 15. Bf2 Bg6 16. e4 dxc4 17. Nxc4 {½-½ (38) Zechner,G (2261)-Teuschler,B (2172) Austria 2019}) 11... dxe4 {[%emt 0:01:28]} 12. Nxe4 {[%emt 0:01:45]} Nxe4 {[%emt 0:00:34]} 13. Rxe4 {[%emt 0:00:06]} Bf5 {[%emt 0:00:46]} 14. Ree1 {[%emt 0:04:52]} Bf6 {[%emt 0:03:33]} (14... Qxb3 $11 {deserves consideration.} 15. axb3 Bb4) 15. Qxb6 {[%emt 0:00:53]} axb6 {[%emt 0:04:38]} 16. a3 {[%emt 0:03:42]} Bd3 {[%emt 0:06:26]} 17. Rac1 {[%emt 0:04:58]} b5 {[%emt 0:04:15]} 18. Ne5 {[%emt 0:03:06]} (18. Bd6 $11 {keeps the balance.}) 18... Bxe5 {[%emt 0:00:58]} 19. dxe5 {[%emt 0:00:35]} Bxc4 {[%emt 0:03:40]} ({Stronger than} 19... bxc4 20. Rcd1 $17) 20. Rcd1 {[%emt 0:01:24]} Nc5 {[%emt 0:03:42]} 21. Bf1 {[%emt 0:05:45]} Bxf1 {[%emt 0:02:44]} 22. Kxf1 {[%emt 0:00:04]} Rfd8 {[%emt 0:00:27]} 23. Ke2 {[%emt 0:00:12]} g5 {[%emt 0:05:16]} (23... Rd5 $142 24. Rxd5 exd5) 24. Bc1 {[%emt 0:04:42]} Kg7 $17 {[%emt 0:02:01]} (24... Rd5 $19 25. f4 Ra4) 0-1

[Event "CZE-ch Amateurs 2022"]
[Site "Luhacovice"]
[Date "2022.03.16"]
[Round "6.17"]
[White "Urban, Zdenek"]
[Black "Bakalar, Jan"]
[Result "1-0"]
[ECO "A53"]
[WhiteElo "2093"]
[BlackElo "1820"]
[Annotator "ChessBase"]
[PlyCount "137"]
[EventDate "2022.03.12"]
[EventType "swiss"]
[EventCountry "CZE"]
[SourceTitle "playchess.com"]
[Source "ChessBase"]
[SourceQuality "1"]
[TimeControl "5400+30"]

1. d4 {[%emt 0:00:13]} Nf6 {[%emt 0:01:06]} 2. c4 {[%emt 0:00:06]} d6 {[%emt 0:01:45]} 3. Nc3 {[%emt 0:00:37]} c6 {[%emt 0:01:14]} 4. e4 {[%emt 0:02:04]} a6 {[%emt 0:00:56]} 5. a4 {[%emt 0:00:26]} Qa5 {[%emt 0:00:15]} 6. Bd2 {[%emt 0:01:19]} Qc7 {[%emt 0:00:07]} 7. g3 {[%emt 0:02:09]} e5 {[%emt 0:00:52]} 8. d5 {[%emt 0:00:48]} a5 {[%emt 0:00:54]} 9. Bg2 {[%emt 0:02:43]} Na6 {[%emt 0:00:18]} 10. h3 {[%emt 0:01:29]} Nc5 {[%emt 0:01:13]} 11. Be3 {[%emt 0:00:54]} Nfd7 {[%emt 0:04:27]} 12. Nge2 {[%emt 0:00:54]} Na6 {[%emt 0:00:34]} 13. O-O {[%emt 0:01:15]} Nb4 {[%emt 0:00:26]} 14. f4 {[%emt 0:05:51]} Be7 {[%emt 0:03:30]} 15. Nc1 {[%emt 0:00:35]} Bf6 {[%emt 0:04:45]} 16. Qd2 {[%emt 0:18:14]} O-O {[%emt 0:01:52]} 17. Rd1 {[%emt 0:04:56]} c5 {[%emt 0:01:39]} 18. Nb5 {[%emt 0:03:36]} Qb8 {[%emt 0:00:05]} 19. f5 {[%emt 0:01:11]} Nb6 {[%emt 0:03:36]} 20. b3 {[%emt 0:00:12]} Bd7 {[%emt 0:00:58]} 21. Nc3 {[%emt 0:01:25]} Qd8 {[%emt 0:01:08]} 22. Rf1 {[%emt 0:01:14]} h6 {[%emt 0:00:23]} 23. h4 {[%emt 0:01:24]} Nc8 {[%emt 0:01:38]} 24. N1a2 {[%emt 0:01:07]} Nxa2 {[%emt 0:02:18]} 25. Rxa2 {[%emt 0:00:32]} Kh7 {[%emt 0:00:24]} 26. Qc1 {[%emt 0:00:23]} b6 {[%emt 0:03:59]} 27. Raf2 {[%emt 0:05:11]} Ne7 {[%emt 0:01:02]} 28. Bh3 {[%emt 0:03:05]} Ng8 {[%emt 0:00:41]} 29. Kh2 {[%emt 0:00:16]} Be8 {[%emt 0:03:12]} 30. Ne2 {[%emt 0:00:11]} Ra7 {[%emt 0:02:07]} 31. Ng1 {[%emt 0:00:11]} Be7 {[%emt 0:09:19]} 32. Nf3 {[%emt 0:09:27]} Nf6 {[%emt 0:01:46]} 33. Qc2 {[%emt 0:00:25]} Rh8 {[%emt 0:01:14]} 34. Kg1 {[%emt 0:02:04]} Kg8 {[%emt 0:00:11]} 35. Rg2 {[%emt 0:00:43]} Nh7 {[%emt 0:01:18]} 36. Qf2 {[%emt 0:01:15]} Nf6 {[%emt 0:00:50]} 37. Nd2 {[%emt 0:00:40]} Nh7 {[%emt 0:00:06]} 38. Qf3 {[%emt 0:01:19]} Rc7 {[%emt 0:01:08]} 39. Kf2 {[%emt 0:01:01]} Ra7 {[%emt 0:00:35]} 40. Ke2 {[%emt 0:00:48]} Kf8 {[%emt 0:00:39]} 41. Qf2 {[%emt 0:00:23]} Nf6 {[%emt 0:09:26]} 42. g4 {[%emt 0:01:06]} Ng8 {[%emt 0:00:11]} 43. Nf3 {[%emt 0:00:44]} f6 {[%emt 0:00:15]} 44. Qg3 {[%emt 0:02:47]} Rh7 {[%emt 0:02:39]} 45. g5 {[%emt 0:01:26]} hxg5 {[%emt 0:01:13]} 46. hxg5 {[%emt 0:00:14]} Bh5 {[%emt 0:00:53]} 47. Bg4 {[%emt 0:00:40]} fxg5 {[%emt 0:04:25]} 48. Bxh5 {[%emt 0:03:21]} Rxh5 {[%emt 0:00:11]} 49. Rh2 {[%emt 0:02:36]} Rxh2+ {[%emt 0:04:31]} 50. Nxh2 {[%emt 0:00:29]} Qe8 {[%emt 0:00:42]} 51. Bxg5 {[%emt 0:00:40]} Qh5+ {[%emt 0:00:25]} 52. Nf3 {[%emt 0:00:07]} Nf6 {[%emt 0:01:59]} 53. Kd3 {[%emt 0:00:31]} Ra8 {[%emt 0:01:26]} 54. Rg1 {[%emt 0:03:14]} Kf7 {[%emt 0:01:17]} 55. Be3 {[%emt 0:00:55]} Ne8 {[%emt 0:02:34]} 56. Qg6+ {[%emt 0:00:28]} Qxg6 {[%emt 0:00:08]} 57. fxg6+ {[%emt 0:02:11]} Kg8 {[%emt 0:00:29]} 58. Bg5 {[%emt 0:00:08]} Nf6 {[%emt 0:00:40]} 59. Nh4 {[%emt 0:00:25]} Bf8 {[%emt 0:03:18]} 60. Bxf6 {[%emt 0:04:08]} gxf6 {[%emt 0:00:02]} 61. Nf5 {[%emt 0:00:18]} Ra7 {[%emt 0:01:28]} 62. Ke2 {[%emt 0:00:29]} Rd7 {[%emt 0:00:29]} 63. Kf3 {[%emt 0:00:05]} Bg7 {[%emt 0:00:51]} 64. Kg4 {[%emt 0:00:46]} Kf8 {[%emt 0:00:34]} 65. Rh1 {[%emt 0:00:04]} Kg8 {[%emt 0:00:42]} 66. Rh7 {[%emt 0:00:15]} Kf8 {[%emt 0:01:01]} 67. Nxg7 {[%emt 0:00:22]} Rxg7 {[%emt 0:00:08]} 68. Rxg7 {[%emt 0:00:15]} Kxg7 {[%emt 0:00:18]} 69. Kf5 {[%emt 0:00:07]} 1-0

[Event "CZE-ch Amateurs 2022"]
[Site "Luhacovice"]
[Date "2022.03.16"]
[Round "6.18"]
[White "Matejovsky, Ondrej"]
[Black "Navratilik, Pavel"]
[Result "0-1"]
[ECO "B52"]
[WhiteElo "1939"]
[BlackElo "2082"]
[Annotator "ChessBase"]
[PlyCount "80"]
[EventDate "2022.03.12"]
[EventType "swiss"]
[EventCountry "CZE"]
[SourceTitle "playchess.com"]
[Source "ChessBase"]
[SourceQuality "1"]
[TimeControl "5400+30"]

1. e4 {[%emt 0:00:11]} c5 {[%emt 0:00:07]} 2. Nf3 {[%emt 0:00:09]} d6 {[%emt 0:00:08]} 3. Bb5+ {[%emt 0:00:21]} Bd7 {[%emt 0:00:49]} 4. Bxd7+ {[%emt 0:00:05]} Nxd7 {[%emt 0:00:28]} 5. O-O {[%emt 0:00:41]} g6 {[%emt 0:01:18]} 6. c3 {[%emt 0:06:11]} Bg7 {[%emt 0:01:32]} 7. d4 {[%emt 0:00:54]} e6 {[%emt 0:08:07]} 8. Bf4 {[%emt 0:07:17]} e5 {[%emt 0:09:28]} 9. dxe5 {[%emt 0:02:06]} dxe5 {[%emt 0:00:27]} 10. Bg5 {[%emt 0:02:55]} Qc7 {[%emt 0:02:06]} 11. Na3 {[%emt 0:02:54]} f6 {[%emt 0:02:15]} 12. Nb5 {[%emt 0:02:29]} Qc6 {[%emt 0:01:04]} 13. Qd3 {[%emt 0:23:21]} fxg5 {[%emt 0:12:52]} 14. Nxg5 {[%emt 0:04:01]} h6 {[%emt 0:35:37]} 15. Ne6 {[%emt 0:04:38]} Kf7 {[%emt 0:05:16]} 16. Nec7 {[%emt 0:05:09]} c4 {[%emt 0:03:17]} 17. Qf3+ {[%emt 0:03:19]} Ngf6 {[%emt 0:00:20]} 18. Nxa8 {[%emt 0:01:20]} Rxa8 {[%emt 0:01:07]} 19. a4 {[%emt 0:01:59]} a6 {[%emt 0:02:13]} 20. Rfd1 {[%emt 0:01:17]} Bf8 {[%emt 0:00:15]} 21. Qe2 {[%emt 0:06:57]} Re8 {[%emt 0:03:51]} 22. Na3 {[%emt 0:01:13]} Bxa3 {[%emt 0:00:30]} 23. Rxa3 {[%emt 0:01:15]} Nxe4 {[%emt 0:01:07]} 24. Raa1 {[%emt 0:02:32]} Ndf6 {[%emt 0:00:57]} 25. Qe3 {[%emt 0:06:02]} Kg7 {[%emt 0:01:24]} 26. h3 {[%emt 0:01:51]} Nc5 {[%emt 0:00:46]} 27. a5 {[%emt 0:02:35]} Nd3 {[%emt 0:00:43]} 28. f3 {[%emt 0:02:10]} Nd5 {[%emt 0:01:20]} 29. Qe4 {[%emt 0:02:24]} Qc5+ {[%emt 0:00:30]} 30. Kh2 {[%emt 0:00:12]} Re7 {[%emt 0:01:24]} 31. Ra4 {[%emt 0:02:46]} Ne3 {[%emt 0:00:53]} 32. b4 {[%emt 0:01:54]} Qb5 {[%emt 0:01:25]} 33. Rda1 {[%emt 0:01:26]} Nf1+ {[%emt 0:00:59]} 34. Kg1 {[%emt 0:01:15]} Ng3 {[%emt 0:01:00]} 35. Qh4 {[%emt 0:00:44]} Nf5 {[%emt 0:00:23]} 36. Qe4 {[%emt 0:00:45]} Nd6 {[%emt 0:00:45]} 37. Qe3 {[%emt 0:00:24]} e4 {[%emt 0:00:15]} 38. R4a2 {[%emt 0:01:00]} Nf5 {[%emt 0:00:40]} 39. Qb6 {[%emt 0:00:46]} Qe5 {[%emt 0:00:27]} 40. Rc2 {[%emt 0:00:27]} exf3 {[%emt 0:00:23]} 0-1

[Event "CZE-ch Amateurs 2022"]
[Site "Luhacovice"]
[Date "2022.03.16"]
[Round "6.19"]
[White "Malinovsky, Petr"]
[Black "Kapusta, Petr"]
[Result "1-0"]
[ECO "E81"]
[WhiteElo "1965"]
[BlackElo "2105"]
[Annotator "ChessBase"]
[PlyCount "97"]
[EventDate "2022.03.12"]
[EventType "swiss"]
[EventCountry "CZE"]
[SourceTitle "playchess.com"]
[Source "ChessBase"]
[SourceQuality "1"]
[TimeControl "5400+30"]

1. d4 {[%emt 0:00:13]} Nf6 {[%emt 0:03:51]} 2. c4 {[%emt 0:00:09]} g6 {[%emt 0:00:09]} 3. Nc3 {[%emt 0:00:10]} Bg7 {[%emt 0:00:08]} 4. e4 {[%emt 0:00:07]} d6 {[%emt 0:00:05]} 5. f3 {[%emt 0:00:15]} O-O {[%emt 0:00:07]} 6. Be3 {[%emt 0:00:10]} c5 {[%emt 0:00:06]} 7. Nge2 {[%emt 0:02:55]} Nc6 {[%emt 0:00:37]} 8. Qd2 {[%emt 0:06:08]} e5 {[%emt 0:06:33]} 9. dxc5 {[%emt 0:01:25]} dxc5 {[%emt 0:00:08]} 10. Bxc5 {[%emt 0:03:28]} Qxd2+ {[%emt 0:00:32]} 11. Kxd2 {[%emt 0:00:01]} Rd8+ {[%emt 0:00:08]} 12. Nd5 {[%emt 0:00:18]} b6 {[%emt 0:02:42]} 13. Be3 {[%emt 0:01:32]} Nxd5 {[%emt 0:06:58]} 14. cxd5 {[%emt 0:01:53]} Bb7 {[%emt 0:02:42]} 15. Nc3 {[%emt 0:01:43]} Rac8 {[%emt 0:00:51]} 16. Bd3 {[%emt 0:02:21]} Na5 {[%emt 0:06:00]} 17. b3 {[%emt 0:02:43]} Bf8 {[%emt 0:03:19]} 18. Nb5 {[%emt 0:11:46]} a6 {[%emt 0:08:16]} 19. Na7 {[%emt 0:00:46]} Bb4+ {[%emt 0:02:41]} 20. Ke2 {[%emt 0:00:37]} Ra8 {[%emt 0:01:08]} 21. Bxb6 {[%emt 0:00:12]} Rd6 {[%emt 0:00:24]} 22. Be3 {[%emt 0:01:16]} Bc3 {[%emt 0:08:33]} 23. Rac1 {[%emt 0:03:19]} Bd4 {[%emt 0:00:10]} 24. b4 {[%emt 0:03:01]} Bxe3 {[%emt 0:04:32]} 25. Kxe3 {[%emt 0:01:56]} Nb3 {[%emt 0:01:40]} 26. axb3 {[%emt 0:03:02]} Rxa7 {[%emt 0:00:10]} 27. Ra1 {[%emt 0:03:39]} Bc8 {[%emt 0:03:48]} 28. Rhc1 {[%emt 0:03:10]} Bd7 {[%emt 0:02:19]} 29. Rc5 {[%emt 0:07:04]} Rb6 {[%emt 0:00:50]} 30. b5 {[%emt 0:00:29]} a5 {[%emt 0:00:07]} 31. Ra4 {[%emt 0:00:42]} Rab7 {[%emt 0:04:49]} 32. Rxa5 {[%emt 0:00:24]} Kf8 {[%emt 0:00:23]} 33. Ra6 {[%emt 0:03:26]} Ke7 {[%emt 0:00:52]} 34. Rxb6 {[%emt 0:01:16]} Rxb6 {[%emt 0:00:05]} 35. Kd2 {[%emt 0:00:37]} Kd6 {[%emt 0:00:13]} 36. b4 {[%emt 0:00:12]} f5 {[%emt 0:01:22]} 37. Kc3 {[%emt 0:00:14]} f4 {[%emt 0:00:19]} 38. Kb3 {[%emt 0:00:20]} g5 {[%emt 0:00:07]} 39. Ka4 {[%emt 0:01:12]} Ra6+ {[%emt 0:00:06]} 40. Kb3 {[%emt 0:00:19]} Rb6 {[%emt 0:00:12]} 41. Rc2 {[%emt 0:00:40]} h5 {[%emt 0:03:09]} 42. Ra2 {[%emt 0:01:02]} Bc8 {[%emt 0:01:49]} 43. Ra7 {[%emt 0:04:28]} Bb7 {[%emt 0:02:48]} 44. Kc4 {[%emt 0:00:20]} Kc7 {[%emt 0:00:53]} 45. Kc5 {[%emt 0:00:19]} Rg6 {[%emt 0:01:36]} 46. b6+ {[%emt 0:00:12]} Kb8 {[%emt 0:00:18]} 47. Ba6 {[%emt 0:01:07]} Ba8 {[%emt 0:02:36]} 48. Re7 {[%emt 0:03:21]} Rg8 {[%emt 0:00:05]} 49. b7 {[%emt 0:00:56]} 1-0

[Event "CZE-ch Amateurs 2022"]
[Site "Luhacovice"]
[Date "2022.03.16"]
[Round "6.20"]
[White "Merva, Frantisek"]
[Black "Zednicek, Filip"]
[Result "1-0"]
[ECO "D02"]
[WhiteElo "2025"]
[BlackElo "1570"]
[Annotator "ChessBase"]
[PlyCount "33"]
[EventDate "2022.03.12"]
[EventType "swiss"]
[EventCountry "CZE"]
[SourceTitle "playchess.com"]
[Source "ChessBase"]
[SourceQuality "1"]
[TimeControl "5400+30"]

1. d4 {[%emt 0:00:18]} d5 {[%emt 0:01:23]} 2. Nf3 {[%emt 0:01:14]} e6 {[%emt 0:01:45]} 3. Bf4 {[%emt 0:02:12]} c5 {[%emt 0:01:04]} 4. e3 {[%emt 0:02:31]} Nc6 {[%emt 0:03:04]} 5. c3 {[%emt 0:00:33]} Nf6 {[%emt 0:01:34]} 6. Nbd2 {[%emt 0:00:53]} Bd6 {[%emt 0:01:57]} 7. Bxd6 {[%emt 0:00:44]} Qxd6 {[%emt 0:00:12]} 8. Bb5 {[%emt 0:00:07]} O-O {[%emt 0:01:49]} 9. Bxc6 {[%emt 0:00:31]} bxc6 {[%emt 0:00:13]} 10. O-O {[%emt 0:00:00]} cxd4 {[%emt 0:03:21]} 11. exd4 {[%emt 0:00:00]} c5 {[%emt 0:01:07]} 12. dxc5 {[%emt 0:03:49]} Qxc5 {[%emt 0:05:13]} 13. Nb3 {[%emt 0:00:06]} Qd6 {[%emt 0:00:32]} 14. Qd4 {[%emt 0:00:12]} Ba6 {[%emt 0:03:32]} 15. Rfe1 {[%emt 0:00:06]} Ne4 {[%emt 0:00:06]} 16. Rad1 {[%emt 0:00:11]} Rfd8 {[%emt 0:02:14]} 17. Rxe4 {[%emt 0:00:19]} 1-0